bitfinex/quotes_BTCUSD_20220211
["timestamp","ask_amount","ask_price","bid_price","bid_amount"]
[1644611763415,4.77e-06,42400.0,42399.0,0.05]
[1644611763613,4.77e-06,42400.0,42399.0,0.95640534]
[1644611763811,0.11587727,42419.0,42399.0,0.59210434]
[1644611764010,0.13808836,42424.0,42400.0,0.631361]
[1644611764212,0.11794293,42426.0,42414.0,0.31430444]
[1644611764411,0.21932615,42431.0,42414.0,0.31430444]
[1644611764412,0.05897316,42422.0,42414.0,0.31430444]
[1644611764612,0.25189156,42424.0,42406.0,0.058974]
[1644611764814,0.35203987,42424.0,42402.0,0.4501]
[1644611765055,0.35203987,42424.0,42403.0,0.0001]
[1644611765056,0.05898,42417.0,42403.0,0.0001]
[1644611765454,0.06477888,42413.0,42403.0,0.0001]
[1644611765654,0.08388607,42406.0,42400.0,0.0435]
[1644611766055,0.08388607,42406.0,42400.0,0.31097394]
[1644611766254,0.08388607,42406.0,42400.0,0.0435]
[1644611766454,0.2219734,42410.0,42400.0,0.0435]
[1644611766654,0.2809674,42410.0,42397.0,0.0001163]
[1644611766853,0.30580839,42413.0,42396.0,0.43189371]
[1644611767053,0.68197284,42420.0,42396.0,0.43201001]
[1644611767054,0.31747036,42417.0,42396.0,0.43201001]
[1644611767454,0.31747036,42417.0,42396.0,0.0501163]
[1644611767455,0.08790007,42411.0,42396.0,0.0501163]
[1644611767657,0.08141954,42411.0,42396.0,0.00012733]
[1644611767861,0.2899613,42410.0,42396.0,0.00012733]
[1644611768261,0.2899613,42410.0,42396.0,0.00024363]
[1644611768461,0.33155154,42408.0,42397.0,0.36282938]
[1644611769006,0.00030271,42405.0,42401.0,0.30903648]
[1644611769205,0.00030271,42405.0,42397.0,0.51282938]
[1644611769404,0.00030271,42405.0,42397.0,0.56282938]
[1644611769805,0.28358114,42409.0,42397.0,0.51282938]
[1644611770005,0.00030271,42403.0,42397.0,0.51282938]
[1644611770907,0.00030271,42403.0,42401.0,0.00451668]
[1644611771107,0.05898922,42408.0,42401.0,0.00451668]
[1644611771306,0.00030271,42402.0,42401.0,0.00451668]
[1644611772307,0.05898655,42410.0,42401.0,0.00451668]
[1644611772560,0.058987,42412.0,42401.0,0.00451668]
[1644611772561,0.00042969,42404.0,42401.0,0.00451668]
[1644611773564,0.06752043,42407.0,42401.0,0.00451668]
[1644611773959,0.00042969,42405.0,42401.0,0.00451668]
[1644611774359,0.20741771,42402.0,42401.0,0.00451668]
[1644611774759,0.5057391,42402.0,42401.0,0.00451668]
[1644611775959,0.5057391,42402.0,42401.0,0.00432191]
[1644611777009,0.20741771,42402.0,42401.0,0.00432191]
[1644611779311,0.43357271,42403.0,42401.0,0.00432191]
[1644611779312,0.295042,42403.0,42401.0,0.00432191]
[1644611779521,0.0013408,42402.0,42401.0,0.00432191]
[1644611780365,0.0013408,42402.0,42396.0,0.00042337]
[1644611780577,0.0013408,42402.0,42384.0,0.0011]
[1644611780578,0.05,42397.0,42384.0,0.0011]
[1644611780767,0.177062,42395.0,42384.0,0.0011]
[1644611780967,0.220562,42395.0,42384.0,0.0011]
[1644611781162,0.220562,42395.0,42390.0,0.25473711]
[1644611781163,0.21894321,42391.0,42390.0,0.25473711]
[1644611781565,0.21894321,42391.0,42384.0,0.0011]
[1644611781763,0.27796821,42391.0,42384.0,0.0011]
[1644611781963,0.33699221,42391.0,42387.0,0.07273466]
[1644611782364,0.05902367,42390.0,42387.0,0.07273466]
[1644611782564,0.0013408,42390.0,42388.0,0.25489681]
[1644611783568,0.0005889,42390.0,42388.0,0.25489681]
[1644611784635,0.05960318,42390.0,42387.0,0.07312409]
[1644611784833,0.07925487,42389.0,42387.0,0.07312409]
[1644611785231,0.17763618,42390.0,42387.0,0.07312409]
[1644611785433,0.17763618,42390.0,42387.0,0.07273466]
[1644611785434,0.23665418,42390.0,42387.0,0.07273466]
[1644611785633,0.17763618,42390.0,42387.0,0.07273466]
[1644611786238,0.04393022,42400.0,42388.0,1.05]
[1644611786436,0.236064,42405.0,42396.0,0.05]
[1644611786636,1.720284,42418.0,42396.0,0.05]
[1644611786637,0.55,42414.0,42396.0,0.05]
[1644611786835,0.55,42414.0,42405.0,0.3057952]
[1644611786836,0.05,42414.0,42405.0,0.3057952]
[1644611787036,0.117982,42406.0,42395.0,0.05]
[1644611787232,0.117982,42406.0,42394.0,0.3]
[1644611787460,0.117982,42406.0,42394.0,0.1]
[1644611787864,0.48412631,42410.0,42391.0,0.3]
[1644611788067,0.48412631,42410.0,42391.0,0.395]
[1644611788068,0.35370284,42399.0,42391.0,0.395]
[1644611788264,0.059006,42397.0,42394.0,0.28375806]
[1644611788664,0.059006,42397.0,42391.0,0.1]
[1644611789265,0.059006,42397.0,42392.0,0.00042342]
[1644611789468,0.118011,42397.0,42392.0,0.00042342]
[1644611789667,0.058996,42401.0,42395.0,0.38705479]
[1644611789865,0.00043025,42402.0,42395.0,0.53705479]
[1644611790266,0.34556199,42414.0,42395.0,0.53705479]
[1644611790564,0.55172383,42409.0,42406.0,0.28763371]
[1644611790770,0.55172383,42409.0,42406.0,0.33763371]
[1644611790771,0.354016,42409.0,42406.0,0.33763371]
[1644611791065,0.354016,42409.0,42406.0,0.28763371]
[1644611791311,0.354016,42409.0,42407.0,0.00529341]
[1644611791519,0.29308263,42408.0,42407.0,0.00529341]
[1644611791712,0.29758485,42408.0,42407.0,0.00529341]
[1644611791913,0.59758485,42408.0,42407.0,0.00134195]
[1644611792312,1.45158959,42408.0,42407.0,0.00134195]
[1644611792510,0.07462572,42399.0,42390.0,0.122]
[1644611792712,0.059005,42397.0,42390.0,0.05]
[1644611792912,0.059005,42397.0,42396.0,0.00042338]
[1644611793912,0.059005,42397.0,42390.0,0.40482626]
[1644611794215,0.059005,42397.0,42394.0,0.00042235]
[1644611794713,0.058996,42398.0,42394.0,0.00042235]
[1644611795167,0.117991,42402.0,42401.0,0.37697027]
[1644611795568,0.117991,42402.0,42396.0,0.1]
[1644611795767,0.117991,42402.0,42394.0,0.00042235]
[1644611795968,0.11919369,42402.0,42394.0,0.00042235]
[1644611796168,0.06020369,42402.0,42394.0,0.00042235]
[1644611796366,0.06020369,42402.0,42393.0,0.37252339]
[1644611796567,0.0004303,42400.0,42394.0,0.33178335]
[1644611796772,0.0004303,42400.0,42395.0,0.331361]
[1644611797068,0.00121269,42402.0,42400.0,0.00086059]
[1644611797069,0.06020269,42402.0,42400.0,0.00086059]
[1644611797268,0.06020269,42402.0,42400.0,0.33222159]
[1644611797467,0.06020269,42402.0,42400.0,0.38222159]
[1644611797674,0.06020269,42402.0,42400.0,0.15086059]
[1644611798172,0.06020269,42402.0,42400.0,0.00086059]
[1644611798370,0.06020269,42402.0,42400.0,0.33222159]
[1644611798928,0.06020269,42402.0,42400.0,0.43222159]
[1644611799128,0.00121269,42402.0,42400.0,0.73952684]
[1644611799335,0.058984,42406.0,42401.0,1.431361]
[1644611799532,0.29505122,42421.0,42403.0,0.331361]
[1644611799734,1.005,42430.0,42409.0,0.05]
[1644611799930,0.3741,42434.0,42409.0,0.05]
[1644611799931,0.05,42431.0,42414.0,0.331361]
[1644611800231,0.24593784,42428.0,42414.0,0.381361]
[1644611800430,0.3,42427.0,42421.0,0.29634127]
[1644611800631,0.24593784,42428.0,42421.0,0.29634127]
[1644611800930,0.05896,42428.0,42422.0,0.331361]
[1644611801134,0.3,42435.0,42421.0,0.40530111]
[1644611801333,0.3,42435.0,42424.0,0.30952783]
[1644611801530,0.00043055,42427.0,42421.0,0.49634127]
[1644611802233,0.00043055,42427.0,42421.0,0.1]
[1644611802466,0.06511549,42422.0,42421.0,0.1]
[1644611802664,0.06511549,42422.0,42411.0,0.34900245]
[1644611803067,0.24928937,42418.0,42411.0,0.34900245]
[1644611803265,0.24928937,42418.0,42411.0,0.34909495]
[1644611803266,0.07970879,42415.0,42411.0,0.34909495]
[1644611803465,0.058973,42416.0,42411.0,0.34909495]
[1644611804066,0.00040194,42417.0,42411.0,0.34909495]
[1644611804267,0.00040194,42417.0,42411.0,9.25e-05]
[1644611804669,0.34639017,42420.0,42415.0,0.39021316]
[1644611804870,0.43466712,42420.0,42415.0,0.39030566]
[1644611805170,0.00040194,42416.0,42415.0,0.39030566]
[1644611805870,0.058965,42421.0,42415.0,0.39030566]
[1644611806072,0.00040194,42418.0,42415.0,0.39030566]
[1644611806541,0.00040194,42418.0,42415.0,0.44926666]
[1644611807144,0.058962,42424.0,42416.0,0.05895726]
[1644611807340,0.00040838,42419.0,42416.0,0.05904976]
[1644611807544,0.00040838,42419.0,42418.0,0.531918]
[1644611807743,0.00040838,42419.0,42418.0,0.6320105]
[1644611808045,0.00040838,42419.0,42418.0,0.9755105]
[1644611808242,0.3,42434.0,42419.0,0.331361]
[1644611808450,0.3,42434.0,42432.0,0.3390062]
[1644611808451,0.05,42434.0,42432.0,0.3390062]
[1644611808643,0.3,42438.0,42432.0,0.28586353]
[1644611808944,0.23763284,42439.0,42433.0,0.331361]
[1644611809343,0.058944,42437.0,42433.0,0.331361]
[1644611809545,0.058944,42437.0,42432.0,9.25e-05]
[1644611809546,0.117886,42437.0,42432.0,9.25e-05]
[1644611809849,0.058942,42437.0,42432.0,9.25e-05]
[1644611810265,0.058948,42436.0,42432.0,9.25e-05]
[1644611810468,0.058942,42437.0,42432.0,9.25e-05]
[1644611810668,0.058942,42437.0,42436.0,0.2854938]
[1644611810967,0.00040688,42436.0,42434.0,0.34551417]
[1644611811970,0.058942,42437.0,42434.0,0.34551417]
[1644611812169,0.058942,42437.0,42435.0,0.25834795]
[1644611812376,0.05934888,42437.0,42434.0,0.34551417]
[1644611813071,0.058942,42437.0,42434.0,0.34551417]
[1644611813272,0.058942,42437.0,42434.0,0.65569522]
[1644611814110,0.058942,42437.0,42434.0,0.34551417]
[1644611814312,0.058942,42437.0,42432.0,9.25e-05]
[1644611814512,0.36654844,42436.0,42432.0,9.25e-05]
[1644611814712,0.108968,42435.0,42432.0,9.25e-05]
[1644611815311,0.05896,42434.0,42433.0,0.36245413]
[1644611815516,0.00040714,42438.0,42433.0,0.36245413]
[1644611815517,0.6429,42448.0,42433.0,0.69390763]
[1644611815714,0.058939,42441.0,42433.0,0.36254663]
[1644611815912,0.31784858,42443.0,42434.0,0.331361]
[1644611815913,0.00040714,42436.0,42434.0,0.331361]
[1644611816112,0.00040714,42436.0,42434.0,0.3314535]
[1644611816317,0.00040714,42436.0,42435.0,0.00498434]
[1644611816512,0.00040714,42436.0,42435.0,0.33643784]
[1644611816715,0.01,42449.0,42435.0,0.33643784]
[1644611816716,0.31,42449.0,42435.0,0.38643784]
[1644611816915,0.31,42449.0,42435.0,0.15507684]
[1644611817112,0.00040714,42438.0,42435.0,0.15507684]
[1644611817574,0.2716125,42437.0,42435.0,0.15507684]
[1644611817775,0.35080177,42437.0,42435.0,0.00507684]
[1644611817968,0.40080177,42437.0,42435.0,0.00507684]
[1644611818170,0.117897,42439.0,42436.0,0.331361]
[1644611818369,0.00040708,42438.0,42436.0,0.3314535]
[1644611818570,0.00040708,42438.0,42436.0,9.25e-05]
[1644611819170,0.32337746,42438.0,42437.0,0.66160724]
[1644611819370,0.32337746,42438.0,42437.0,9.248e-05]
[1644611819371,0.56626717,42438.0,42437.0,9.248e-05]
[1644611820173,0.24288971,42438.0,42437.0,9.248e-05]
[1644611820571,0.05935007,42440.0,42437.0,9.248e-05]
[1644611820769,0.05935007,42440.0,42438.0,0.00250397]
[1644611821417,0.00040707,42440.0,42438.0,0.00250397]
[1644611821616,0.23829588,42440.0,42438.0,0.00250397]
[1644611821824,0.28845984,42439.0,42438.0,0.00250397]
[1644611822020,0.28845984,42439.0,42437.0,0.00016047]
[1644611822021,0.08328109,42438.0,42437.0,0.00016047]
[1644611822223,0.22678109,42438.0,42437.0,0.00025295]
[1644611822823,0.54993789,42438.0,42437.0,0.00025295]
[1644611823219,0.64993789,42438.0,42437.0,0.00025295]
[1644611823823,0.1435,42438.0,42437.0,0.00025295]
[1644611824022,0.74994292,42440.0,42437.0,0.00025295]
[1644611824023,0.631631,42440.0,42437.0,0.33161395]
[1644611824222,0.00040709,42440.0,42437.0,0.00025295]
[1644611824421,0.00040709,42440.0,42438.0,0.331361]
[1644611824963,0.00040709,42440.0,42437.0,0.00025295]
[1644611825164,0.21016554,42441.0,42437.0,0.00025295]
[1644611825369,0.058941,42444.0,42437.0,0.29237571]
[1644611825570,0.00040708,42441.0,42437.0,0.29237571]
[1644611825766,0.00040708,42441.0,42437.0,0.00025295]
[1644611825971,0.00040708,42441.0,42440.0,0.39026027]
[1644611826170,0.0435,42452.0,42440.0,0.39026027]
[1644611826171,0.058928,42455.0,42440.0,0.72162127]
[1644611826373,0.4451,42461.0,42446.0,0.22913863]
[1644611826573,1.0621,42465.0,42446.0,0.22913863]
[1644611826574,0.5977,42465.0,42446.0,0.22913863]
[1644611826773,0.05,42465.0,42450.0,0.05]
[1644611827068,0.05,42465.0,42451.0,0.60075386]
[1644611827268,0.05,42465.0,42458.0,0.05]
[1644611827472,0.00026544,42479.0,42457.0,0.02346]
[1644611827678,0.05,42476.0,42462.0,0.24553769]
[1644611827872,0.05,42476.0,42457.0,0.22346]
[1644611828077,0.33108115,42472.0,42457.0,0.12346]
[1644611828274,0.36352033,42470.0,42459.0,0.4000332]
[1644611828476,0.36352033,42470.0,42459.0,0.4500332]
[1644611828733,0.19900417,42471.0,42459.0,0.5500332]
[1644611829128,0.00043456,42466.0,42459.0,0.5500332]
[1644611829329,0.00043456,42466.0,42459.0,0.1]
[1644611829532,0.00043456,42466.0,42454.0,0.1]
[1644611829728,0.00043456,42466.0,42453.0,0.1]
[1644611829928,0.00043456,42466.0,42449.0,0.05]
[1644611830130,0.34999951,42459.0,42449.0,0.34490401]
[1644611830329,0.34999951,42459.0,42448.0,0.05891375]
[1644611830533,0.34999951,42459.0,42445.0,0.36373475]
[1644611830734,0.34999951,42459.0,42452.0,0.00110858]
[1644611831530,0.00043459,42458.0,42452.0,0.00110858]
[1644611831934,0.00043459,42458.0,42453.0,0.37294578]
[1644611832134,0.00043459,42458.0,42454.0,0.381361]
[1644611832331,0.00043459,42458.0,42453.0,0.37294578]
[1644611832569,0.01,42469.0,42454.0,0.34863181]
[1644611832970,4.59e-06,42458.0,42455.0,0.37009395]
[1644611833181,0.00026544,42475.0,42455.0,0.37009395]
[1644611833182,0.00026544,42473.0,42459.0,0.2]
[1644611833373,0.00026544,42474.0,42460.0,0.674861]
[1644611833571,0.00026544,42475.0,42461.0,0.32872942]
[1644611833773,0.28863757,42482.0,42464.0,0.11776]
[1644611833970,0.00026544,42475.0,42466.0,0.22230309]
[1644611834171,0.00026544,42481.0,42470.0,0.058883]
[1644611834374,0.52770503,42482.0,42479.0,0.326556]
[1644611834571,0.00026544,42481.0,42479.0,0.326556]
[1644611834771,0.00026544,42485.0,42479.0,0.326556]
[1644611834972,0.00026544,42486.0,42479.0,0.326556]
[1644611835170,0.00026544,42488.0,42471.0,0.15]
[1644611835372,0.01026544,42489.0,42471.0,0.05]
[1644611835572,0.01026544,42489.0,42469.0,0.05]
[1644611835573,0.00026544,42488.0,42469.0,0.05]
[1644611835772,0.34794264,42482.0,42475.0,0.2984346]
[1644611835973,0.34794264,42482.0,42475.0,0.05887683]
[1644611836220,0.34794264,42482.0,42477.0,0.38778664]
[1644611836413,0.30330752,42487.0,42477.0,0.48778664]
[1644611836614,0.30304208,42487.0,42477.0,0.48778664]
[1644611836815,0.30330752,42487.0,42477.0,0.48778664]
[1644611837016,0.07625117,42482.0,42477.0,0.1]
[1644611837215,0.00026544,42486.0,42477.0,0.1]
[1644611837416,0.30330752,42487.0,42477.0,0.1]
[1644611837617,0.00026544,42487.0,42476.0,0.35472895]
[1644611837915,0.56556912,42488.0,42479.0,0.28584275]
[1644611837916,0.00049718,42482.0,42479.0,0.28584275]
[1644611838520,0.30706922,42481.0,42474.0,0.058879]
[1644611838721,0.00026544,42481.0,42466.0,0.058891]
[1644611838919,0.00026544,42481.0,42462.0,0.17665981]
[1644611838920,6.189e-05,42482.0,42465.0,0.11776604]
[1644611839117,6.189e-05,42482.0,42466.0,0.1416]
[1644611839118,0.00032733,42482.0,42466.0,0.1416]
[1644611839317,6.189e-05,42482.0,42469.0,0.058878]
[1644611839516,0.00032733,42482.0,42470.0,0.32268952]
[1644611839718,6.189e-05,42482.0,42481.0,0.39755748]
[1644611839963,6.189e-05,42482.0,42464.0,0.1916]
[1644611839964,0.00032733,42482.0,42474.0,0.1]
[1644611840165,0.00030039,42478.0,42474.0,0.05]
[1644611840363,0.00030039,42478.0,42471.0,0.15]
[1644611840571,0.00030039,42478.0,42470.0,0.15]
[1644611840963,6.189e-05,42482.0,42472.0,0.67868367]
[1644611840964,0.00026544,42481.0,42472.0,0.67868367]
[1644611841167,0.00032733,42482.0,42480.0,0.30437655]
[1644611841365,0.00126325,42482.0,42480.0,0.30437655]
[1644611842164,6.189e-05,42482.0,42480.0,0.30437655]
[1644611842870,0.0004376,42483.0,42475.0,0.3759]
[1644611843067,0.00026544,42482.0,42475.0,0.5259]
[1644611843267,0.0004376,42483.0,42476.0,0.31862519]
[1644611843467,0.22586335,42488.0,42476.0,0.31862519]
[1644611843468,0.00026544,42482.0,42476.0,0.31862519]
[1644611843721,0.0004376,42481.0,42480.0,0.32137724]
[1644611843915,0.0004376,42481.0,42480.0,0.42137724]
[1644611844514,0.0004376,42481.0,42475.0,0.3759]
[1644611844515,0.30595213,42481.0,42475.0,0.3759]
[1644611844715,0.30595213,42481.0,42464.0,0.3]
[1644611844716,0.07860345,42475.0,42464.0,0.3]
[1644611844914,0.07860345,42475.0,42462.0,0.00043781]
[1644611845113,0.35551453,42481.0,42462.0,0.00043781]
[1644611845114,0.00026544,42479.0,42462.0,0.00043781]
[1644611845313,0.35551453,42481.0,42462.0,0.00043781]
[1644611845314,0.00026544,42480.0,42462.0,0.30043781]
[1644611845513,0.35551453,42481.0,42476.0,0.31780225]
[1644611845514,0.260475,42479.0,42476.0,0.31780225]
[1644611846114,0.00043761,42480.0,42469.0,0.25085107]
[1644611846319,0.07081603,42480.0,42466.0,0.05888746]
[1644611846518,0.07081603,42480.0,42459.0,0.285677]
[1644611846519,0.07313765,42473.0,42461.0,0.382]
[1644611846716,0.06371184,42466.0,42455.0,0.30009244]
[1644611846920,0.06371184,42466.0,42455.0,9.244e-05]
[1644611847115,0.3,42472.0,42460.0,0.2975822]
[1644611847116,0.29676663,42470.0,42460.0,0.2975822]
[1644611847317,0.29676663,42470.0,42455.0,9.244e-05]
[1644611847318,0.26810662,42461.0,42455.0,9.244e-05]
[1644611847578,0.26431593,42464.0,42455.0,9.244e-05]
[1644611848380,0.26431593,42464.0,42458.0,0.32823199]
[1644611848684,0.00030035,42466.0,42460.0,0.34633904]
[1644611848882,0.00030035,42466.0,42460.0,0.058898]
[1644611849479,0.00030035,42466.0,42458.0,0.47832443]
[1644611849480,0.08522591,42461.0,42458.0,9.244e-05]
[1644611849688,0.00030015,42466.0,42461.0,0.17045181]
[1644611849980,0.05892,42465.0,42461.0,0.16545181]
[1644611850180,0.05921928,42466.0,42461.0,0.16545181]
[1644611850181,0.00030015,42466.0,42461.0,0.16545181]
[1644611850379,0.00030015,42466.0,42464.0,0.001096]
[1644611850580,0.11782821,42473.0,42464.0,0.30721582]
[1644611850581,0.00026544,42470.0,42464.0,0.30721582]
[1644611850780,0.00026544,42471.0,42464.0,0.30721582]
[1644611850978,0.24315062,42475.0,42464.0,0.64500565]
[1644611850979,0.00043708,42466.0,42464.0,0.64500565]
[1644611851238,0.00043708,42466.0,42464.0,0.30721582]
[1644611851631,0.00043708,42466.0,42464.0,0.45721582]
[1644611851829,0.00026544,42470.0,42464.0,0.45721582]
[1644611852030,0.19315062,42475.0,42464.0,0.45721582]
[1644611852031,0.3021306,42472.0,42464.0,0.45721582]
[1644611852235,0.28216385,42465.0,42464.0,0.001096]
[1644611852847,0.05935208,42467.0,42464.0,0.001096]
[1644611853032,0.2421562,42468.0,42464.0,0.001096]
[1644611853441,0.00043731,42467.0,42464.0,0.001096]
[1644611854231,0.2421562,42468.0,42464.0,0.001096]
[1644611854634,0.2425935,42468.0,42464.0,0.001096]
[1644611855375,0.2421562,42468.0,42464.0,0.001096]
[1644611855576,0.2421562,42468.0,42466.0,0.00113074]
[1644611855776,0.0004373,42468.0,42466.0,0.00113074]
[1644611856780,0.23842023,42476.0,42466.0,0.00113074]
[1644611856980,0.0004373,42469.0,42466.0,0.00113074]
[1644611858080,0.00026544,42472.0,42466.0,0.34184583]
[1644611858284,0.0004373,42470.0,42466.0,0.15113074]
[1644611858482,0.0004373,42470.0,42466.0,0.10113074]
[1644611858726,0.0004373,42470.0,42467.0,0.39787819]
[1644611858920,0.0004373,42470.0,42467.0,0.33898919]
[1644611859224,0.0004373,42470.0,42468.0,0.331361]
[1644611859423,0.0004373,42470.0,42469.0,0.516461]
[1644611859424,0.00042189,42470.0,42469.0,0.516461]
[1644611859821,1.89e-06,42470.0,42469.0,0.775333]
[1644611860021,1.89e-06,42470.0,42469.0,0.767432]
[1644611860219,0.01,42489.0,42469.0,0.417432]
[1644611860220,0.00026544,42476.0,42469.0,0.417432]
[1644611860421,0.00026544,42479.0,42472.0,0.058874]
[1644611860620,0.58582768,42485.0,42474.0,0.40296489]
[1644611860621,0.00026544,42480.0,42474.0,0.40296489]
[1644611860823,0.00026544,42484.0,42483.0,0.30683788]
[1644611861021,0.58582768,42485.0,42483.0,0.30683788]
[1644611861022,0.33678526,42485.0,42483.0,0.30683788]
[1644611861423,0.33678526,42485.0,42472.0,0.36787682]
[1644611861424,0.28644305,42477.0,42472.0,0.36787682]
[1644611861621,0.01,42489.0,42472.0,0.25012382]
[1644611861622,0.39366529,42484.0,42472.0,0.25012382]
[1644611861824,0.00026544,42488.0,42469.0,0.47]
[1644611862020,0.00026544,42488.0,42469.0,0.52]
[1644611862221,0.42562781,42489.0,42469.0,0.57]
[1644611862475,0.42562781,42489.0,42483.0,0.33971284]
[1644611862476,0.00026544,42488.0,42483.0,0.33971284]
[1644611862676,0.42562781,42489.0,42483.0,0.33971284]
[1644611862878,0.30898681,42484.0,42483.0,0.33971284]
[1644611863073,0.42536237,42489.0,42483.0,0.33971284]
[1644611863074,0.18673093,42488.0,42483.0,0.33971284]
[1644611863275,0.18646549,42488.0,42483.0,0.33971284]
[1644611864074,0.18690273,42488.0,42483.0,0.33971284]
[1644611864274,0.00043724,42488.0,42483.0,0.33971284]
[1644611865076,0.01,42489.0,42483.0,0.33971284]
[1644611865274,0.01,42489.0,42473.0,0.15]
[1644611865473,0.00043724,42488.0,42474.0,0.00098832]
[1644611865674,0.00070268,42488.0,42479.0,0.34012962]
[1644611865875,0.00070268,42488.0,42479.0,0.49012962]
[1644611866075,0.18728242,42487.0,42479.0,0.49012962]
[1644611866318,0.18754786,42487.0,42479.0,0.49012962]
[1644611866518,0.00043725,42486.0,42479.0,0.49012962]
[1644611866720,0.00070269,42486.0,42485.0,0.40020396]
[1644611866918,0.00043725,42486.0,42485.0,0.40020396]
[1644611867518,0.01,42489.0,42485.0,0.40020396]
[1644611867719,0.00043724,42488.0,42485.0,0.40020396]
[1644611868321,0.26959095,42488.0,42485.0,0.40020396]
[1644611868520,0.00043724,42488.0,42485.0,0.40020396]
[1644611868729,0.01,42489.0,42485.0,0.40020396]
[1644611868926,0.01043724,42489.0,42485.0,0.40020396]
[1644611869730,0.2919805,42486.0,42485.0,0.40020396]
[1644611869976,0.01,42489.0,42485.0,0.40020396]
[1644611870178,0.01070279,42489.0,42485.0,0.40020396]
[1644611870376,0.00741879,42486.0,42485.0,0.40239407]
[1644611871778,0.00741879,42486.0,42485.0,0.55239407]
[1644611871978,0.00741879,42486.0,42485.0,0.60239407]
[1644611872180,0.01,42489.0,42486.0,1.05]
[1644611872387,0.00026556,42493.0,42487.0,1.05]
[1644611872579,0.2695,42500.0,42487.0,0.05]
[1644611872580,0.00043724,42488.0,42487.0,0.05]
[1644611872781,0.00043724,42488.0,42487.0,0.15]
[1644611872981,0.00043724,42488.0,42487.0,0.26769464]
[1644611873180,0.00043724,42488.0,42487.0,0.43539864]
[1644611873579,0.00026556,42493.0,42489.0,0.058857]
[1644611873825,0.00030053,42490.0,42489.0,0.058857]
[1644611874229,0.00030053,42490.0,42489.0,0.17657077]
[1644611874627,0.00026556,42495.0,42489.0,0.17657077]
[1644611874827,0.05,42501.0,42493.0,0.05885285]
[1644611874828,0.00026556,42500.0,42493.0,0.05885285]
[1644611875031,0.00175048,42498.0,42494.0,0.35110584]
[1644611875427,0.00175048,42498.0,42494.0,0.45110584]
[1644611875627,0.32123956,42497.0,42494.0,0.45110584]
[1644611875831,0.00026556,42502.0,42494.0,0.56881284]
[1644611876232,0.00043767,42498.0,42494.0,0.56881284]
[1644611876426,0.00043767,42498.0,42491.0,0.0611416]
[1644611876633,0.00043767,42498.0,42485.0,0.14379011]
[1644611876634,0.08115723,42497.0,42485.0,0.00219011]
[1644611876834,0.3,42496.0,42485.0,0.00219011]
[1644611877030,1.0424,42495.0,42485.0,0.00219011]
[1644611877226,0.05,42491.0,42485.0,0.00219011]
[1644611877474,1.01668428,42490.0,42485.0,0.00219011]
[1644611877776,1.30224067,42490.0,42485.0,0.00219011]
[1644611878373,1.24335067,42490.0,42485.0,0.00219011]
[1644611878573,1.24378836,42490.0,42485.0,0.00219011]
[1644611878774,0.117771,42488.0,42485.0,0.00219011]
[1644611878974,0.43459734,42487.0,42485.0,0.00219011]
[1644611879174,0.32002347,42486.0,42485.0,0.00219011]
[1644611879375,0.36352347,42486.0,42485.0,0.00219011]
[1644611881330,0.36352347,42486.0,42485.0,0.00106849]
[1644611882130,0.0435,42486.0,42485.0,0.00106849]
[1644611882939,0.17709908,42488.0,42486.0,0.331361]
[1644611882940,0.00042394,42488.0,42486.0,0.331361]
[1644611883132,0.00026556,42493.0,42486.0,0.05]
[1644611883328,0.00026556,42497.0,42486.0,0.1]
[1644611883528,0.0004377,42488.0,42486.0,0.15]
[1644611883729,0.0004377,42488.0,42487.0,0.38514865]
[1644611883933,0.0004377,42488.0,42487.0,0.54401365]
[1644611884129,0.0004377,42488.0,42487.0,0.87537465]
[1644611884334,0.0004377,42488.0,42487.0,0.54401365]
[1644611884737,0.00026556,42493.0,42487.0,0.38514865]
[1644611884738,0.00030007,42490.0,42487.0,0.38514865]
[1644611885175,0.00025014,42492.0,42487.0,0.38514865]
[1644611885576,0.25475645,42497.0,42487.0,0.38514865]
[1644611885876,0.06,42509.0,42492.0,0.28097433]
[1644611885877,0.00025014,42499.0,42492.0,0.28097433]
[1644611886075,0.00025014,42500.0,42497.0,0.40022698]
[1644611886274,0.39146629,42508.0,42497.0,0.40022698]
[1644611886275,0.00025014,42506.0,42497.0,0.40022698]
[1644611886473,0.05886,42504.0,42497.0,0.40022698]
[1644611886683,0.00025014,42508.0,42497.0,0.40022698]
[1644611886878,0.00025014,42506.0,42498.0,0.64222051]
[1644611887078,0.00043996,42504.0,42500.0,0.05884]
[1644611887277,0.00043996,42504.0,42501.0,0.37825452]
[1644611887783,0.00043996,42504.0,42501.0,0.47825452]
[1644611887977,0.00025014,42506.0,42501.0,0.15]
[1644611888187,0.01,42509.0,42501.0,0.1]
[1644611888188,0.00043995,42505.0,42501.0,0.1]
[1644611888385,0.00043995,42505.0,42497.0,0.117689]
[1644611888574,0.00043995,42505.0,42498.0,0.1]
[1644611888819,0.00043995,42505.0,42495.0,0.267696]
[1644611889018,0.00043995,42505.0,42495.0,0.15]
[1644611889220,0.20182935,42505.0,42496.0,0.058851]
[1644611889431,0.01,42509.0,42501.0,0.38493643]
[1644611889432,0.00043996,42504.0,42501.0,0.38493643]
[1644611889721,0.00043996,42504.0,42495.0,0.05]
[1644611889918,0.00043996,42504.0,42494.0,0.1]
[1644611890118,0.00043996,42504.0,42494.0,0.267696]
[1644611890320,0.01,42509.0,42495.0,0.058851]
[1644611890321,0.00025014,42505.0,42495.0,0.058851]
[1644611890520,0.19633181,42504.0,42500.0,0.32495668]
[1644611890723,0.00043996,42501.0,42500.0,0.32495668]
[1644611891318,0.00043996,42501.0,42500.0,0.37495668]
[1644611891520,0.00025014,42505.0,42500.0,0.47495668]
[1644611891818,0.0003899,42503.0,42500.0,0.47495668]
[1644611892674,0.00025014,42508.0,42500.0,0.47495668]
[1644611892874,0.01025014,42509.0,42500.0,0.47495668]
[1644611893074,0.0003899,42504.0,42500.0,0.47495668]
[1644611893874,0.34086643,42507.0,42500.0,0.47495668]
[1644611893875,0.00025014,42506.0,42500.0,0.47495668]
[1644611894075,0.33113464,42506.0,42500.0,0.47495668]
[1644611894278,0.0003899,42504.0,42500.0,0.47495668]
[1644611894476,0.0003899,42504.0,42500.0,0.15200499]
[1644611894676,0.0003899,42504.0,42500.0,0.16085199]
[1644611894874,0.0003899,42504.0,42500.0,0.06085199]
[1644611895076,0.00025014,42505.0,42500.0,0.06085199]
[1644611895277,0.33113464,42506.0,42500.0,0.11969699]
[1644611895278,0.33138478,42506.0,42500.0,0.11969699]
[1644611895482,0.33138478,42506.0,42502.0,0.0010307]
[1644611895483,0.25245578,42503.0,42502.0,0.0010307]
[1644611896078,0.00043995,42504.0,42502.0,0.0010307]